[Event "*** SCC Grand Prix: Titled Tuesday Blitz"]
[Site "Chess.com"]
[Date "2020.10.06"]
[Round "2"]
[White "WPWPWP-2015"]
[Black "VladaSviridova"]
[Result "1-0"]
[WhiteElo "2448"]
[BlackElo "2249"]
[TimeControl "180+1"]
[EndTime "10:17:27 PDT"]
[Termination "WPWPWP-2015 won on time"]

1. e4 {[%clk 0:03:00.9]} 1... e6 {[%clk 0:02:59.8]} 2. d4 {[%clk 0:02:59.9]}
2... d5 {[%clk 0:03:00.4]} 3. Nc3 {[%clk 0:03:00.1]} 3... Bb4 {[%clk 0:02:59.7]}
4. a3 {[%clk 0:02:59.4]} 4... Bxc3+ {[%clk 0:02:59.4]} 5. bxc3 {[%clk
0:03:00.3]} 5... dxe4 {[%clk 0:02:59.5]} 6. Qg4 {[%clk 0:03:00.3]} 6... Nf6
{[%clk 0:02:59.8]} 7. Qxg7 {[%clk 0:03:00.2]} 7... Rg8 {[%clk 0:03:00.4]} 8. Qh6
{[%clk 0:02:59.7]} 8... c5 {[%clk 0:03:00.6]} 9. Qe3 {[%clk 0:02:57.4]} 9...
cxd4 {[%clk 0:02:54.3]} 10. cxd4 {[%clk 0:02:56.7]} 10... Nc6 {[%clk 0:02:53.2]}
11. Ne2 {[%clk 0:02:56.2]} 11... Bd7 {[%clk 0:02:49.5]} 12. h3 {[%clk
0:02:53.3]} 12... Qb6 {[%clk 0:02:39]} 13. c4 {[%clk 0:02:46.8]} 13... O-O-O
{[%clk 0:01:54.4]} 14. Qc3 {[%clk 0:02:38.4]} 14... Qa5 {[%clk 0:01:45.9]} 15.
Be3 {[%clk 0:02:27.6]} 15... Qxc3+ {[%clk 0:01:25.1]} 16. Nxc3 {[%clk
0:02:28.5]} 16... Na5 {[%clk 0:01:22.2]} 17. g4 {[%clk 0:02:12.6]} 17... Bc6
{[%clk 0:01:17]} 18. Be2 {[%clk 0:02:05.5]} 18... Ne8 {[%clk 0:00:56.3]} 19. Rd1
{[%clk 0:01:06.4]} 19... Nc7 {[%clk 0:00:39.5]} 20. h4 {[%clk 0:00:53.3]} 20...
Kb8 {[%clk 0:00:35]} 21. g5 {[%clk 0:00:50.9]} 21... a6 {[%clk 0:00:24.1]} 22.
h5 {[%clk 0:00:49.6]} 22... Ka8 {[%clk 0:00:18.5]} 23. Rh4 {[%clk 0:00:46.4]}
23... Kb8 {[%clk 0:00:17.2]} 24. Nxe4 {[%clk 0:00:44.2]} 24... Bxe4 {[%clk
0:00:15.8]} 25. Rxe4 {[%clk 0:00:43.5]} 25... Nc6 {[%clk 0:00:15.6]} 26. Rf4
{[%clk 0:00:39.4]} 26... Rd7 {[%clk 0:00:12.8]} 27. Bf3 {[%clk 0:00:33.7]} 27...
Kc8 {[%clk 0:00:11]} 28. d5 {[%clk 0:00:30.2]} 28... exd5 {[%clk 0:00:09.9]} 29.
Bg4 {[%clk 0:00:28.5]} 29... Ne6 {[%clk 0:00:07.1]} 30. Rxf7 {[%clk 0:00:27]}
30... Rxf7 {[%clk 0:00:05.2]} 31. Bxe6+ {[%clk 0:00:26.2]} 31... Rd7 {[%clk
0:00:05.2]} 32. Bxg8 {[%clk 0:00:25]} 32... d4 {[%clk 0:00:04.7]} 33. Be6 {[%clk
0:00:24.7]} 1-0

[Event "*** SCC Grand Prix: Titled Tuesday Blitz"]
[Site "Chess.com"]
[Date "2020.10.06"]
[Round "2"]
[White "MishkaFighter"]
[Black "Msb2"]
[Result "0-1"]
[WhiteElo "2577"]
[BlackElo "2907"]
[TimeControl "180+1"]
[EndTime "10:17:28 PDT"]
[Termination "Msb2 won by checkmate"]

1. Nf3 {[%clk 0:03:00.9]} 1... d5 {[%clk 0:02:58.5]} 2. d4 {[%clk 0:02:59.7]}
2... Nf6 {[%clk 0:02:58.5]} 3. c4 {[%clk 0:02:59.5]} 3... e6 {[%clk 0:02:58.4]}
4. g3 {[%clk 0:02:59.4]} 4... Bb4+ {[%clk 0:02:57.3]} 5. Bd2 {[%clk 0:02:59.2]}
5... a5 {[%clk 0:02:58]} 6. Bg2 {[%clk 0:02:57.3]} 6... O-O {[%clk 0:02:57.8]}
7. O-O {[%clk 0:02:56]} 7... dxc4 {[%clk 0:02:58.2]} 8. Qc2 {[%clk 0:02:55.1]}
8... Bxd2 {[%clk 0:02:56.9]} 9. Nbxd2 {[%clk 0:02:53.4]} 9... b5 {[%clk
0:02:57.1]} 10. a4 {[%clk 0:02:52.8]} 10... c6 {[%clk 0:02:56.1]} 11. b3 {[%clk
0:02:53]} 11... cxb3 {[%clk 0:02:54.9]} 12. Nxb3 {[%clk 0:02:53.9]} 12... b4
{[%clk 0:02:55.4]} 13. Ne5 {[%clk 0:02:52.6]} 13... Nd5 {[%clk 0:02:54.9]} 14.
Nxc6 {[%clk 0:02:45.4]} 14... Nxc6 {[%clk 0:02:18.8]} 15. Qxc6 {[%clk
0:02:46.3]} 15... Ra6 {[%clk 0:02:19.3]} 16. Qc4 {[%clk 0:02:32.3]} 16... Nc3
{[%clk 0:02:17.3]} 17. Nc5 {[%clk 0:02:30.2]} 17... Rd6 {[%clk 0:02:13.7]} 18.
e3 {[%clk 0:02:30.1]} 18... Qb6 {[%clk 0:02:11.2]} 19. Rfc1 {[%clk 0:01:36.3]}
19... Ba6 {[%clk 0:02:10.6]} 20. Nxa6 {[%clk 0:01:35.5]} 20... Qxa6 {[%clk
0:02:11.5]} 21. Bf1 {[%clk 0:01:26.3]} 21... Qxc4 {[%clk 0:02:08.3]} 22. Bxc4
{[%clk 0:01:27.2]} 22... Rc8 {[%clk 0:02:08.9]} 23. Bd3 {[%clk 0:01:18.8]} 23...
Rb6 {[%clk 0:02:01.5]} 24. Rc2 {[%clk 0:01:17.9]} 24... b3 {[%clk 0:01:33]} 25.
Rb2 {[%clk 0:01:17.9]} 25... Rb4 {[%clk 0:01:33.6]} 26. Ra3 {[%clk 0:01:15.2]}
26... Rcb8 {[%clk 0:01:32.7]} 27. Bb5 {[%clk 0:00:42.8]} 27... Nxb5 {[%clk
0:01:32.2]} 28. axb5 {[%clk 0:00:34.5]} 28... a4 {[%clk 0:01:31.2]} 29. Kf1
{[%clk 0:00:33.2]} 29... R8xb5 {[%clk 0:01:28.4]} 30. Ke2 {[%clk 0:00:34.1]}
30... g6 {[%clk 0:01:27.5]} 31. Kd2 {[%clk 0:00:34.6]} 31... Rc4 {[%clk
0:01:22.3]} 32. Kd3 {[%clk 0:00:33.8]} 32... Rbb4 {[%clk 0:01:22.8]} 33. h4
{[%clk 0:00:29.2]} 33... Rc8 {[%clk 0:01:22.5]} 34. Ra1 {[%clk 0:00:25.5]} 34...
Rbc4 {[%clk 0:01:21.9]} 35. Rbb1 {[%clk 0:00:20]} 35... Rc3+ {[%clk 0:01:15.5]}
36. Ke4 {[%clk 0:00:18.7]} 36... R8c4 {[%clk 0:01:15.6]} 37. Ra3 {[%clk
0:00:13.3]} 37... Kg7 {[%clk 0:01:13.8]} 38. Kf3 {[%clk 0:00:10.6]} 38... h5
{[%clk 0:01:06.1]} 39. Ke4 {[%clk 0:00:10.5]} 39... Rc2 {[%clk 0:01:02.8]} 40.
Kf3 {[%clk 0:00:10]} 40... b2 {[%clk 0:01:01.1]} 41. Ra2 {[%clk 0:00:09.6]}
41... Rb4 {[%clk 0:01:01.4]} 42. Ke4 {[%clk 0:00:06]} 42... a3 {[%clk 0:01:02]}
43. Kd3 {[%clk 0:00:06.2]} 43... Rc1 {[%clk 0:01:02.4]} 44. Raa1 {[%clk
0:00:06.5]} 44... Rxb1 {[%clk 0:01:01.9]} 45. Rxa3 {[%clk 0:00:05.1]} 45... Rd1+
{[%clk 0:01:01.6]} 46. Ke4 {[%clk 0:00:04.5]} 46... b1=Q+ {[%clk 0:01:02.5]} 47.
Kf3 {[%clk 0:00:05.4]} 47... Qf5+ {[%clk 0:01:02.7]} 48. Kg2 {[%clk 0:00:05.4]}
48... Rb2 {[%clk 0:01:03]} 49. Kh2 {[%clk 0:00:06.3]} 49... Rxf2# {[%clk
0:01:02.2]} 0-1

[Event "*** SCC Grand Prix: Titled Tuesday Blitz"]
[Site "Chess.com"]
[Date "2020.10.06"]
[Round "2"]
[White "kngopal"]
[Black "Margency"]
[Result "0-1"]
[WhiteElo "2223"]
[BlackElo "2648"]
[TimeControl "180+1"]
[EndTime "10:17:29 PDT"]
[Termination "Margency won by resignation"]

1. e4 {[%clk 0:03:00.9]} 1... c5 {[%clk 0:02:59.7]} 2. c4 {[%clk 0:02:59.3]}
2... d6 {[%clk 0:02:57.8]} 3. g3 {[%clk 0:02:58.7]} 3... Nc6 {[%clk 0:02:57.7]}
4. Bg2 {[%clk 0:02:58.9]} 4... g6 {[%clk 0:02:58.1]} 5. Ne2 {[%clk 0:02:58.4]}
5... Bg7 {[%clk 0:02:58.2]} 6. Nbc3 {[%clk 0:02:58.3]} 6... Nf6 {[%clk
0:02:57.9]} 7. O-O {[%clk 0:02:57.9]} 7... O-O {[%clk 0:02:58.5]} 8. d3 {[%clk
0:02:56.5]} 8... Ne8 {[%clk 0:02:59]} 9. h3 {[%clk 0:02:55.3]} 9... Nc7 {[%clk
0:02:58.9]} 10. f4 {[%clk 0:02:54.3]} 10... Ne6 {[%clk 0:02:59]} 11. Kh2 {[%clk
0:02:52.5]} 11... Rb8 {[%clk 0:02:58.7]} 12. a4 {[%clk 0:02:49.9]} 12... a6
{[%clk 0:02:58]} 13. f5 {[%clk 0:02:46.1]} 13... Ned4 {[%clk 0:02:58]} 14. Nxd4
{[%clk 0:02:45.3]} 14... Nxd4 {[%clk 0:02:58.2]} 15. fxg6 {[%clk 0:02:42.1]}
15... hxg6 {[%clk 0:02:58]} 16. Be3 {[%clk 0:02:38.4]} 16... e6 {[%clk
0:02:48.5]} 17. Rb1 {[%clk 0:02:31.5]} 17... Bd7 {[%clk 0:02:45.6]} 18. b3
{[%clk 0:02:26.9]} 18... b5 {[%clk 0:02:44.8]} 19. axb5 {[%clk 0:02:25.7]} 19...
axb5 {[%clk 0:02:44.9]} 20. Bd2 {[%clk 0:01:59.6]} 20... Qe7 {[%clk 0:02:28.9]}
21. Qg4 {[%clk 0:01:52.8]} 21... b4 {[%clk 0:02:14.2]} 22. Ne2 {[%clk
0:01:50.4]} 22... e5 {[%clk 0:02:13.6]} 23. Bg5 {[%clk 0:01:23.7]} 23... f6
{[%clk 0:02:05.6]} 24. Bxf6 {[%clk 0:01:11.5]} 24... Rxf6 {[%clk 0:02:05.4]} 25.
Qg5 {[%clk 0:00:52.2]} 25... Nxe2 {[%clk 0:02:02.2]} 26. Ra1 {[%clk 0:00:48.3]}
26... Rbf8 {[%clk 0:01:54.3]} 27. Ra7 {[%clk 0:00:46]} 27... R8f7 {[%clk
0:01:29]} 28. Ra8+ {[%clk 0:00:41]} 28... Kh7 {[%clk 0:01:24.1]} 29. Qh4+ {[%clk
0:00:38]} 29... Bh6 {[%clk 0:01:24.3]} 30. Rfa1 {[%clk 0:00:28.9]} 30... Nxg3
{[%clk 0:01:03.5]} 31. Rh8+ {[%clk 0:00:18.3]} 31... Kxh8 {[%clk 0:01:03.4]} 32.
Qxh6+ {[%clk 0:00:17.8]} 32... Kg8 {[%clk 0:01:02.9]} 33. Kxg3 {[%clk
0:00:15.8]} 33... g5 {[%clk 0:00:52.6]} 34. Qh5 {[%clk 0:00:13.6]} 34... Rh7
{[%clk 0:00:47.7]} 35. Qe2 {[%clk 0:00:10.4]} 35... Rf4 {[%clk 0:00:43.9]} 36.
Ra7 {[%clk 0:00:07.9]} 36... g4 {[%clk 0:00:42.1]} 37. Ra8+ {[%clk 0:00:04]}
37... Kg7 {[%clk 0:00:41.9]} 0-1

[Event "*** SCC Grand Prix: Titled Tuesday Blitz"]
[Site "Chess.com"]
[Date "2020.10.06"]
[Round "2"]
[White "Satscho"]
[Black "IMAghasiyevKamal"]
[Result "0-1"]
[WhiteElo "2305"]
[BlackElo "2502"]
[TimeControl "180+1"]
[EndTime "10:17:29 PDT"]
[Termination "IMAghasiyevKamal won by resignation"]

1. e4 {[%clk 0:03:00.9]} 1... e5 {[%clk 0:02:56.1]} 2. f4 {[%clk 0:02:59.8]}
2... d5 {[%clk 0:02:46.4]} 3. exd5 {[%clk 0:02:58.2]} 3... exf4 {[%clk
0:02:46.2]} 4. Nf3 {[%clk 0:02:53.8]} 4... Nf6 {[%clk 0:02:45.8]} 5. Nc3 {[%clk
0:02:44]} 5... Bc5 {[%clk 0:02:31.4]} 6. Bc4 {[%clk 0:02:43.2]} 6... O-O {[%clk
0:02:30.3]} 7. d4 {[%clk 0:02:37.2]} 7... Re8+ {[%clk 0:02:30.2]} 8. Ne2 {[%clk
0:02:30.9]} 8... Bd6 {[%clk 0:02:11.5]} 9. O-O {[%clk 0:02:30.3]} 9... Nh5
{[%clk 0:02:08.3]} 10. Bd3 {[%clk 0:02:21.4]} 10... Bg4 {[%clk 0:02:02.3]} 11.
c4 {[%clk 0:02:19.4]} 11... b6 {[%clk 0:02:00.2]} 12. Qc2 {[%clk 0:02:07]} 12...
h6 {[%clk 0:01:46.3]} 13. c5 {[%clk 0:01:56.5]} 13... bxc5 {[%clk 0:01:30.4]}
14. dxc5 {[%clk 0:01:57.4]} 14... Bf8 {[%clk 0:01:27.1]} 15. Nxf4 {[%clk
0:01:45.2]} 15... Nxf4 {[%clk 0:01:27.2]} 16. Bxf4 {[%clk 0:01:46.1]} 16... Qxd5
{[%clk 0:01:27.8]} 17. Rac1 {[%clk 0:01:43.4]} 17... Nc6 {[%clk 0:01:27.3]} 18.
a3 {[%clk 0:01:34.2]} 18... Rad8 {[%clk 0:01:21.7]} 19. Bc4 {[%clk 0:01:26.9]}
19... Qxc5+ {[%clk 0:01:20.2]} 20. Kh1 {[%clk 0:01:27.6]} 20... Qh5 {[%clk
0:01:12.9]} 21. Bxc7 {[%clk 0:01:22.8]} 21... Rc8 {[%clk 0:01:10.4]} 22. Ne5
{[%clk 0:01:05]} 22... Nxe5 {[%clk 0:00:59.2]} 23. Bxe5 {[%clk 0:01:05.9]} 23...
Rxc4 {[%clk 0:00:56.1]} 24. Qxc4 {[%clk 0:00:57.9]} 24... Rxe5 {[%clk
0:00:45.8]} 25. b4 {[%clk 0:00:53.1]} 25... Bd6 {[%clk 0:00:42.1]} 26. Rxf7
{[%clk 0:00:32]} 26... Qxf7 {[%clk 0:00:35.3]} 27. Qxg4 {[%clk 0:00:31.5]} 27...
Qe6 {[%clk 0:00:29.4]} 28. Qg3 {[%clk 0:00:24.8]} 28... Re3 {[%clk 0:00:25.7]}
29. Qf2 {[%clk 0:00:22]} 29... Qe5 {[%clk 0:00:21]} 30. g3 {[%clk 0:00:19.3]}
30... Qe4+ {[%clk 0:00:19.7]} 31. Kg1 {[%clk 0:00:18.6]} 31... Re2 {[%clk
0:00:19.7]} 32. Rc8+ {[%clk 0:00:17.6]} 32... Kh7 {[%clk 0:00:19.6]} 33. Qf1
{[%clk 0:00:13.4]} 33... Be5 {[%clk 0:00:19.6]} 34. Rc1 {[%clk 0:00:08.4]} 34...
Bd4+ {[%clk 0:00:18.9]} 0-1

[Event "*** SCC Grand Prix: Titled Tuesday Blitz"]
[Site "Chess.com"]
[Date "2020.10.06"]
[Round "2"]
[White "Ladislav1969"]
[Black "sergiochess83"]
[Result "0-1"]
[WhiteElo "2358"]
[BlackElo "2788"]
[TimeControl "180+1"]
[EndTime "10:17:30 PDT"]
[Termination "sergiochess83 won by resignation"]

1. e4 {[%clk 0:03:00.9]} 1... c5 {[%clk 0:02:57.7]} 2. d4 {[%clk 0:03:00.3]}
2... cxd4 {[%clk 0:02:57.2]} 3. c3 {[%clk 0:03:01.2]} 3... Nf6 {[%clk
0:02:55.5]} 4. e5 {[%clk 0:03:00.7]} 4... Nd5 {[%clk 0:02:55.7]} 5. Nf3 {[%clk
0:03:01.4]} 5... Nc6 {[%clk 0:02:55.5]} 6. Bc4 {[%clk 0:03:01.7]} 6... Nb6
{[%clk 0:02:54.5]} 7. Bb3 {[%clk 0:03:02.3]} 7... d5 {[%clk 0:02:52.2]} 8. exd6
{[%clk 0:03:02.4]} 8... e6 {[%clk 0:02:52.5]} 9. Nxd4 {[%clk 0:02:50.1]} 9...
Qxd6 {[%clk 0:02:48.4]} 10. Be3 {[%clk 0:02:36.7]} 10... Bd7 {[%clk 0:02:40]}
11. Nb5 {[%clk 0:02:31.2]} 11... Qe5 {[%clk 0:02:24.7]} 12. Qe2 {[%clk
0:02:22.5]} 12... Na5 {[%clk 0:02:19]} 13. Nd4 {[%clk 0:01:45]} 13... Nxb3
{[%clk 0:02:18.3]} 14. axb3 {[%clk 0:01:43.7]} 14... Nd5 {[%clk 0:02:18.4]} 15.
Na3 {[%clk 0:01:20]} 15... Nxe3 {[%clk 0:02:06.3]} 16. fxe3 {[%clk 0:01:19.7]}
16... Be7 {[%clk 0:01:57.3]} 17. Nc4 {[%clk 0:01:19.5]} 17... Qc7 {[%clk
0:01:38.3]} 18. O-O {[%clk 0:01:19.2]} 18... O-O {[%clk 0:01:37.9]} 19. Qh5
{[%clk 0:01:12.4]} 19... f6 {[%clk 0:01:23.9]} 20. Rf3 {[%clk 0:01:10.6]} 20...
Qc5 {[%clk 0:01:13.8]} 21. Qh4 {[%clk 0:00:56.9]} 21... b5 {[%clk 0:01:01.9]}
22. Rh3 {[%clk 0:00:48.6]} 22... h6 {[%clk 0:00:43.9]} 23. Nd2 {[%clk
0:00:43.3]} 23... Qg5 {[%clk 0:00:38.4]} 24. Qf2 {[%clk 0:00:42.5]} 24... a5
{[%clk 0:00:37.7]} 25. Rg3 {[%clk 0:00:41.1]} 25... Qd5 {[%clk 0:00:35]} 26. Qf4
{[%clk 0:00:38]} 26... Bd6 {[%clk 0:00:32.4]} 27. Qg4 {[%clk 0:00:16.2]} 27...
Bxg3 {[%clk 0:00:30.3]} 28. Qxg3 {[%clk 0:00:13.5]} 28... e5 {[%clk 0:00:30]}
29. e4 {[%clk 0:00:13.4]} 29... Qc5 {[%clk 0:00:29.1]} 30. Kh1 {[%clk
0:00:11.2]} 30... exd4 {[%clk 0:00:28.6]} 31. cxd4 {[%clk 0:00:09.4]} 31... Qxd4
{[%clk 0:00:28.4]} 32. Nf3 {[%clk 0:00:08.8]} 32... Qxe4 {[%clk 0:00:23.9]} 33.
Re1 {[%clk 0:00:08.7]} 33... Qf5 {[%clk 0:00:21.6]} 34. Re7 {[%clk 0:00:07.1]}
34... Rf7 {[%clk 0:00:21.8]} 0-1

[Event "*** SCC Grand Prix: Titled Tuesday Blitz"]
[Site "Chess.com"]
[Date "2020.10.06"]
[Round "2"]
[White "Obito24"]
[Black "vladislavkovalev"]
[Result "0-1"]
[WhiteElo "2568"]
[BlackElo "2873"]
[TimeControl "180+1"]
[EndTime "10:17:33 PDT"]
[Termination "vladislavkovalev won by resignation"]

1. d4 {[%clk 0:03:00.9]} 1... Nf6 {[%clk 0:03:00.2]} 2. c4 {[%clk 0:02:46.3]}
2... g6 {[%clk 0:03:00.4]} 3. Nc3 {[%clk 0:02:45.8]} 3... Bg7 {[%clk 0:03:01.1]}
4. Nf3 {[%clk 0:02:45.3]} 4... O-O {[%clk 0:03:00.7]} 5. e4 {[%clk 0:02:44.6]}
5... d6 {[%clk 0:03:01.2]} 6. Be2 {[%clk 0:02:43.9]} 6... e5 {[%clk 0:03:01.9]}
7. dxe5 {[%clk 0:02:42.7]} 7... dxe5 {[%clk 0:03:02.8]} 8. Qc2 {[%clk 0:02:43]}
8... Nc6 {[%clk 0:02:58.8]} 9. O-O {[%clk 0:02:37.9]} 9... Nd4 {[%clk
0:02:49.7]} 10. Nxd4 {[%clk 0:01:55.7]} 10... exd4 {[%clk 0:02:50.6]} 11. Nd5
{[%clk 0:01:56.1]} 11... c6 {[%clk 0:02:44.1]} 12. Nxf6+ {[%clk 0:01:53.6]}
12... Qxf6 {[%clk 0:02:45]} 13. f4 {[%clk 0:01:41.5]} 13... Re8 {[%clk
0:02:38.5]} 14. Bd3 {[%clk 0:01:38]} 14... Qe7 {[%clk 0:02:31.8]} 15. c5 {[%clk
0:01:26.4]} 15... Be6 {[%clk 0:02:26.6]} 16. b4 {[%clk 0:01:25.1]} 16... a5
{[%clk 0:02:23.4]} 17. b5 {[%clk 0:01:18.8]} 17... cxb5 {[%clk 0:02:20.4]} 18.
a4 {[%clk 0:01:16.5]} 18... b4 {[%clk 0:02:18.8]} 19. Bb2 {[%clk 0:01:14.8]}
19... Rac8 {[%clk 0:02:18.1]} 20. Rac1 {[%clk 0:01:14.5]} 20... Rc7 {[%clk
0:02:17.1]} 21. e5 {[%clk 0:00:56.5]} 21... Rd8 {[%clk 0:02:03]} 22. h3 {[%clk
0:00:32]} 22... Rd5 {[%clk 0:02:01.1]} 23. Qf2 {[%clk 0:00:29.1]} 23... Rdxc5
{[%clk 0:01:49.9]} 24. Rxc5 {[%clk 0:00:26.7]} 24... Rxc5 {[%clk 0:01:50.8]} 25.
Bxd4 {[%clk 0:00:26.8]} 25... Rc8 {[%clk 0:01:50]} 26. Be4 {[%clk 0:00:22.7]}
26... Qd7 {[%clk 0:01:47.2]} 27. Rd1 {[%clk 0:00:21.9]} 27... Qxa4 {[%clk
0:01:46.8]} 28. Qe2 {[%clk 0:00:20.2]} 28... Rd8 {[%clk 0:01:42.9]} 29. Bf3
{[%clk 0:00:11.1]} 29... Bf8 {[%clk 0:01:26.3]} 30. Ra1 {[%clk 0:00:09.5]} 30...
Qd7 {[%clk 0:01:17.5]} 31. Bb6 {[%clk 0:00:08.7]} 31... a4 {[%clk 0:00:59.7]}
32. Bxd8 {[%clk 0:00:06.9]} 32... Qd4+ {[%clk 0:01:00.3]} 33. Kh2 {[%clk
0:00:06.3]} 33... Qxa1 {[%clk 0:00:59.5]} 34. Qb5 {[%clk 0:00:06.4]} 34... Qd4
{[%clk 0:00:53.2]} 35. Qe8 {[%clk 0:00:03]} 35... Qd7 {[%clk 0:00:40]} 36. Qxd7
{[%clk 0:00:01.8]} 36... Bxd7 {[%clk 0:00:40.9]} 37. Bxb7 {[%clk 0:00:02.2]}
37... a3 {[%clk 0:00:41]} 38. Bd5 {[%clk 0:00:02.1]} 38... Be6 {[%clk
0:00:41.7]} 0-1

[Event "*** SCC Grand Prix: Titled Tuesday Blitz"]
[Site "Chess.com"]
[Date "2020.10.06"]
[Round "2"]
[White "seorobert1971"]
[Black "MrChampion_Coach"]
[Result "1/2-1/2"]
[WhiteElo "2699"]
[BlackElo "2396"]
[TimeControl "180+1"]
[EndTime "10:17:33 PDT"]
[Termination "Game drawn by repetition"]

1. c4 {[%clk 0:03:00.9]} 1... e5 {[%clk 0:02:57.9]} 2. Nc3 {[%clk 0:03:00.9]}
2... Bb4 {[%clk 0:02:56.7]} 3. Nd5 {[%clk 0:02:59.9]} 3... Na6 {[%clk
0:02:56.8]} 4. Nxb4 {[%clk 0:02:58.5]} 4... Nxb4 {[%clk 0:02:56.7]} 5. a3 {[%clk
0:02:58.2]} 5... Nc6 {[%clk 0:02:57]} 6. d3 {[%clk 0:02:53.9]} 6... Nf6 {[%clk
0:02:56.9]} 7. e4 {[%clk 0:02:52.1]} 7... d6 {[%clk 0:02:52.4]} 8. h3 {[%clk
0:02:48.9]} 8... h6 {[%clk 0:02:42.4]} 9. Ne2 {[%clk 0:02:43.8]} 9... a5 {[%clk
0:02:42.1]} 10. b3 {[%clk 0:02:42.9]} 10... Bd7 {[%clk 0:02:37.8]} 11. Be3
{[%clk 0:02:37.3]} 11... Qe7 {[%clk 0:02:30.8]} 12. g4 {[%clk 0:02:34.9]} 12...
Nh7 {[%clk 0:02:21.7]} 13. Ng3 {[%clk 0:02:30.1]} 13... Ng5 {[%clk 0:02:21.5]}
14. h4 {[%clk 0:02:25.5]} 14... Ne6 {[%clk 0:02:20.8]} 15. Nf5 {[%clk
0:02:25.3]} 15... Qf8 {[%clk 0:02:21.2]} 16. Qd2 {[%clk 0:02:19]} 16... g6
{[%clk 0:01:53.3]} 17. Ng3 {[%clk 0:02:06.9]} 17... Ncd4 {[%clk 0:01:50.4]} 18.
Qd1 {[%clk 0:02:05.1]} 18... b5 {[%clk 0:01:17.3]} 19. h5 {[%clk 0:02:01.1]}
19... bxc4 {[%clk 0:01:07.5]} 20. bxc4 {[%clk 0:01:54.2]} 20... Rb8 {[%clk
0:01:00.6]} 21. Be2 {[%clk 0:01:50.1]} 21... Rb2 {[%clk 0:00:56.6]} 22. Rb1
{[%clk 0:01:23.9]} 22... Rxb1 {[%clk 0:00:38.4]} 23. Qxb1 {[%clk 0:01:22.7]}
23... Ke7 {[%clk 0:00:39.3]} 24. Bd1 {[%clk 0:01:08.8]} 24... Nf4 {[%clk
0:00:32.4]} 25. Kd2 {[%clk 0:00:42.3]} 25... g5 {[%clk 0:00:24.1]} 26. Bxd4
{[%clk 0:00:38.2]} 26... exd4 {[%clk 0:00:25]} 27. Qb2 {[%clk 0:00:26.3]} 27...
c5 {[%clk 0:00:23.9]} 28. Qb7 {[%clk 0:00:22.3]} 28... Qb8 {[%clk 0:00:23]} 29.
Nf5+ {[%clk 0:00:21.2]} 29... Kf6 {[%clk 0:00:20]} 30. Qxd7 {[%clk 0:00:15.1]}
30... Qb2+ {[%clk 0:00:19.1]} 31. Bc2 {[%clk 0:00:15.3]} 31... Qc3+ {[%clk
0:00:19.1]} 32. Kd1 {[%clk 0:00:12.2]} 32... Qa1+ {[%clk 0:00:18.7]} 33. Kd2
{[%clk 0:00:12.3]} 33... Qc3+ {[%clk 0:00:18.9]} 34. Kd1 {[%clk 0:00:11.4]}
34... Qa1+ {[%clk 0:00:18.8]} 35. Kd2 {[%clk 0:00:11.5]} 35... Qc3+ {[%clk
0:00:18.6]} 1/2-1/2

[Event "*** SCC Grand Prix: Titled Tuesday Blitz"]
[Site "Chess.com"]
[Date "2020.10.06"]
[Round "2"]
[White "stefy02"]
[Black "Balla_Tamas"]
[Result "0-1"]
[WhiteElo "2242"]
[BlackElo "2437"]
[TimeControl "180+1"]
[EndTime "10:17:35 PDT"]
[Termination "Balla_Tamas won by resignation"]

1. e4 {[%clk 0:03:00.9]} 1... c5 {[%clk 0:02:51.1]} 2. Nf3 {[%clk 0:02:58.8]}
2... e6 {[%clk 0:02:51.6]} 3. d4 {[%clk 0:02:58.1]} 3... cxd4 {[%clk 0:02:52.5]}
4. Nxd4 {[%clk 0:02:58.3]} 4... a6 {[%clk 0:02:53.1]} 5. Bd3 {[%clk 0:02:54.3]}
5... Bc5 {[%clk 0:02:51.9]} 6. Nb3 {[%clk 0:02:51.8]} 6... Ba7 {[%clk
0:02:50.6]} 7. O-O {[%clk 0:02:50.7]} 7... d6 {[%clk 0:02:50]} 8. c4 {[%clk
0:02:50.3]} 8... Nf6 {[%clk 0:02:50]} 9. Qe2 {[%clk 0:02:50.2]} 9... O-O {[%clk
0:02:48.9]} 10. Nc3 {[%clk 0:02:49.6]} 10... e5 {[%clk 0:02:47.5]} 11. Bg5
{[%clk 0:02:43.8]} 11... Be6 {[%clk 0:02:45.6]} 12. Nd5 {[%clk 0:02:41.1]} 12...
Nbd7 {[%clk 0:02:45.2]} 13. Kh1 {[%clk 0:02:33.6]} 13... h6 {[%clk 0:02:42.8]}
14. Bd2 {[%clk 0:02:26]} 14... Rc8 {[%clk 0:02:40.9]} 15. Rad1 {[%clk
0:02:13.6]} 15... Nc5 {[%clk 0:02:30.5]} 16. Bb1 {[%clk 0:01:56.6]} 16... Nxb3
{[%clk 0:02:24.4]} 17. axb3 {[%clk 0:01:55.1]} 17... b5 {[%clk 0:02:16.4]} 18.
Bd3 {[%clk 0:01:32.1]} 18... Bxd5 {[%clk 0:02:04.1]} 19. exd5 {[%clk 0:01:27.4]}
19... e4 {[%clk 0:02:04.3]} 20. Bxe4 {[%clk 0:01:18.3]} 20... Re8 {[%clk
0:02:04.8]} 21. f3 {[%clk 0:01:18.4]} 21... bxc4 {[%clk 0:02:01.1]} 22. bxc4
{[%clk 0:01:17.9]} 22... Qc7 {[%clk 0:01:54]} 23. Rc1 {[%clk 0:01:11.1]} 23...
Qb7 {[%clk 0:01:49.6]} 24. Bc3 {[%clk 0:01:03.9]} 24... Nd7 {[%clk 0:01:44.4]}
25. Qc2 {[%clk 0:00:50.3]} 25... Rxc4 {[%clk 0:01:22.5]} 26. Bh7+ {[%clk
0:00:49.4]} 26... Kh8 {[%clk 0:01:22.7]} 27. Bxg7+ {[%clk 0:00:33.6]} 27... Kxg7
{[%clk 0:01:22.6]} 28. Qxc4 {[%clk 0:00:34.3]} 28... Kxh7 {[%clk 0:01:23.2]} 29.
Rfd1 {[%clk 0:00:24.6]} 29... Bc5 {[%clk 0:01:19.8]} 30. Qf4 {[%clk 0:00:23.1]}
30... Ne5 {[%clk 0:01:17.5]} 31. Qf5+ {[%clk 0:00:22.4]} 31... Kg7 {[%clk
0:01:13]} 32. Rc2 {[%clk 0:00:17.4]} 32... Qe7 {[%clk 0:01:10.6]} 33. g4 {[%clk
0:00:16]} 33... Qf6 {[%clk 0:01:09]} 34. Qxf6+ {[%clk 0:00:14.2]} 34... Kxf6
{[%clk 0:01:08.7]} 35. Kg2 {[%clk 0:00:14.9]} 35... Ng6 {[%clk 0:01:08.2]} 36.
Kg3 {[%clk 0:00:14.4]} 36... Re3 {[%clk 0:01:05.2]} 37. h4 {[%clk 0:00:12.9]}
37... Ne5 {[%clk 0:01:04.7]} 38. Rf1 {[%clk 0:00:13.2]} 38... Bd4 {[%clk
0:01:02.4]} 39. b4 {[%clk 0:00:12.4]} 39... Nd3 {[%clk 0:01:01.6]} 40. Rb1
{[%clk 0:00:10.5]} 40... Be5+ {[%clk 0:01:00.3]} 41. Kg2 {[%clk 0:00:10.4]}
41... Nf4+ {[%clk 0:01:00.5]} 42. Kf2 {[%clk 0:00:10.8]} 42... Rd3 {[%clk
0:00:59]} 43. Ra2 {[%clk 0:00:08.6]} 43... Bd4+ {[%clk 0:00:57.2]} 44. Kg3
{[%clk 0:00:07.9]} 44... Nxd5 {[%clk 0:00:55.7]} 45. Rxa6 {[%clk 0:00:08.1]}
45... Be5+ {[%clk 0:00:56.6]} 46. Kf2 {[%clk 0:00:07.9]} 46... Rd2+ {[%clk
0:00:56.2]} 47. Ke1 {[%clk 0:00:07.5]} 47... Rh2 {[%clk 0:00:55.7]} 48. Kd1
{[%clk 0:00:06.5]} 48... Nc3+ {[%clk 0:00:55.1]} 49. Kc1 {[%clk 0:00:06.2]}
49... Rh1+ {[%clk 0:00:55.2]} 0-1